bitfinex/quotes_ETHUSD_20250411
["timestamp","ask_amount","ask_price","bid_price","bid_amount"]
[1744356379897,0.7,1549.8,1549.6,6.70666531]
[1744356380102,0.7,1549.8,1549.6,6.70655531]
[1744356380262,0.7,1549.8,1549.6,13.15968531]
[1744356381796,0.7,1549.8,1549.6,17.01303588]
[1744356382090,0.7,1549.8,1549.6,10.55988588]
[1744356383863,1.5047,1549.8,1549.6,10.55988588]
[1744356384401,1.5047,1549.8,1549.6,6.70653531]
[1744356384587,1.5047,1549.8,1549.6,0.25340531]
[1744356385298,1.5047,1549.8,1549.6,6.70660531]
[1744356385475,1.5047,1549.8,1549.6,6.70652531]
[1744356388299,1.5047,1549.8,1549.6,13.15963531]
[1744356388516,1.5047,1549.8,1549.6,6.70651531]
[1744356389306,1.5047,1549.8,1549.6,13.15965531]
[1744356389470,1.5047,1549.8,1549.6,6.70651531]
[1744356390481,6.422,1549.7,1549.6,6.70651531]
[1744356392036,1.5047,1549.8,1549.6,13.15964531]
[1744356392185,6.422,1549.7,1549.6,6.70651531]
[1744356393215,6.422,1549.7,1549.6,0.25340531]
[1744356394989,6.422,1549.7,1549.6,6.70667531]
[1744356396532,6.422,1549.7,1549.6,0.25340531]
[1744356398622,14.39676,1549.7,1549.6,0.25340531]
[1744356398997,14.39676,1549.7,1549.3,11.28259728]
[1744356399546,7.9439,1549.7,1549.4,0.25294611]
[1744356399688,7.9439,1549.7,1549.4,6.70698611]
[1744356400288,7.9439,1549.7,1549.4,0.25294611]
[1744356400488,7.9439,1549.7,1549.3,17.73696728]
[1744356400844,7.9439,1549.7,1549.4,0.25294611]
[1744356401014,0.79439,1549.6,1549.4,0.25294611]
[1744356401214,0.79439,1549.6,1549.3,11.28261728]
[1744356401544,0.79439,1549.6,1549.4,0.25436681]
[1744356401950,0.79439,1549.6,1549.3,17.73696728]
[1744356402107,7.9439,1549.7,1549.5,0.2537258]
[1744356402603,6.42,1549.6,1549.5,13.1608458]
[1744356403440,6.79,1549.8,1549.6,6.45327]
[1744356403647,6.421,1549.7,1549.6,6.45327]
[1744356405737,6.421,1549.7,1549.6,6.70653244]
[1744356408647,0.7,1549.8,1549.6,6.70653244]
[1744356408946,6.421,1549.7,1549.6,6.70653244]
[1744356409134,6.421,1549.7,1549.6,0.25326244]
[1744356410043,6.421,1549.7,1549.6,6.70653244]
[1744356411944,6.421,1549.7,1549.6,0.25326244]
[1744356412914,6.421,1549.7,1549.6,6.70653244]
[1744356416918,6.421,1549.7,1549.6,15.38820763]
[1744356418550,6.421,1549.7,1549.6,8.93493763]
[1744356418849,7.9416,1549.7,1549.6,8.93493763]
[1744356420347,7.9416,1549.7,1549.6,0.25326244]
[1744356421785,0.7,1549.8,1549.6,6.70653244]
[1744356421786,1.5141,1549.8,1549.6,6.70653244]
[1744356422082,6.42,1549.7,1549.6,13.15964244]
[1744356422423,6.35,1549.7,1549.6,13.15964244]
[1744356423960,6.35,1549.7,1549.6,6.70637244]
[1744356425162,7.1291,1549.7,1549.6,0.25326244]
[1744356425464,14.28696,1549.7,1549.6,0.25326244]
[1744356425759,6.35,1549.7,1549.6,0.25326244]
[1744356426181,6.42,1549.7,1549.6,6.70653244]
[1744356426778,6.42,1549.7,1549.6,0.25326244]
[1744356427642,13.68766,1549.7,1549.6,0.25326244]
[1744356428280,16.68766,1549.7,1549.6,0.25326244]
[1744356428579,20.06602006,1549.7,1549.6,0.25326244]
[1744356429975,24.46937063,1549.7,1549.6,0.25326244]
[1744356430377,30.55937063,1549.7,1549.6,0.25326244]
[1744356435294,41.23537063,1549.7,1549.6,2.44e-06]
[1744356435458,41.23537063,1549.7,1549.6,9.5e-07]
[1744356435654,10.82257,1549.6,1549.5,7.28e-06]
[1744356435853,7.27424,1549.2,1549.1,6.27610594]
[1744356436050,69.04724,1549.2,1549.1,6.27610594]
[1744356436257,69.04724,1549.2,1549.1,6.49117716]
[1744356436779,75.68724,1549.2,1549.1,6.49117716]
[1744356438756,61.445,1549.2,1549.1,6.49117716]
[1744356439288,80.77138548,1549.2,1549.1,6.49117716]
[1744356439594,81.54628548,1549.2,1549.1,6.49117716]
[1744356439958,61.774,1549.2,1549.1,6.49117716]
[1744356441302,61.774,1549.2,1549.1,0.21507122]
[1744356441594,61.774,1549.2,1548.9,6.45602]
[1744356441795,68.98124,1549.2,1549.1,0.21517691]
[1744356441986,6.45541,1549.1,1548.8,1.3003]
[1744356442174,12.91099,1549.1,1548.8,1.3003]
[1744356442373,12.91099,1549.1,1548.8,0.5]
[1744356442700,6.45541,1549.1,1548.8,0.5]
[1744356443504,0.7,1549.0,1548.8,0.5]
[1744356444298,0.7,1549.0,1548.8,6.95656]
[1744356444901,0.7,1549.0,1548.9,7.28199]
[1744356445098,0.7,1549.0,1548.9,0.8258]
[1744356446805,0.7,1549.0,1548.9,7.28199]
[1744356449010,7.12,1549.0,1548.9,7.28199]
[1744356450178,7.12,1549.0,1548.9,11.07294057]
[1744356450597,7.12,1549.0,1548.9,11.29068742]
[1744356452014,7.12,1549.0,1548.9,11.77604816]
[1744356454010,0.7,1549.0,1548.9,11.77604816]
[1744356454382,55.368,1549.6,1549.4,6.45394]
[1744356454582,55.368,1549.6,1549.4,12.90792]
[1744356454583,6.42,1549.5,1549.4,12.90792]
[1744356454784,6.42,1549.5,1549.4,6.45394]
[1744356457716,6.42,1549.5,1549.4,7.824278]
[1744356459282,6.42,1549.5,1549.4,6.45394]
[1744356459485,7.12,1549.5,1549.4,6.45394]
[1744356461016,7.12,1549.5,1549.4,6.66879819]
[1744356462618,7.12,1549.5,1549.4,0.21485819]
[1744356462788,7.9116,1549.5,1549.2,12.90969]
[1744356462989,0.79116,1549.4,1549.3,0.21523281]
[1744356466534,11.88732057,1549.4,1549.3,0.21523281]
[1744356466825,18.34177057,1549.4,1549.0,6.45577]
[1744356467022,6.45458,1549.3,1549.0,6.45577]
[1744356469734,6.45553,1549.1,1548.8,6.95656]
[1744356469930,6.416,1549.0,1548.8,6.95656]
[1744356470502,6.416,1549.0,1548.8,13.41312]
[1744356470727,6.416,1549.0,1548.8,6.95656]
[1744356473831,6.416,1549.0,1548.8,13.41301]
[1744356474030,6.416,1549.0,1548.8,14.23341]
[1744356474224,6.416,1549.0,1548.9,6.45619]
[1744356474534,6.416,1549.0,1548.8,7.77685]
[1744356474703,6.416,1549.0,1548.8,14.23329]
[1744356475231,6.416,1549.0,1548.8,7.77684]
[1744356475557,6.45619,1548.9,1548.8,0.5]
[1744356475911,20.9023767,1549.0,1548.8,0.5]
[1744356476901,14.4462567,1549.0,1548.8,0.5]
[1744356477446,20.9022267,1549.0,1548.8,0.5]
[1744356477731,9.36291267,1548.9,1548.8,0.5]
[1744356480235,15.78091267,1548.9,1548.8,0.5]
[1744356480638,9.36291267,1548.9,1548.8,0.72074872]
[1744356480844,15.78091267,1548.9,1548.8,0.72074872]
[1744356481137,15.78091267,1548.9,1548.8,0.5]
[1744356482744,15.75151267,1548.9,1548.8,0.5]
[1744356487849,21.84151267,1548.9,1548.8,0.5]
[1744356490953,77.22451267,1548.9,1548.8,0.5]
[1744356491341,80.77451267,1548.9,1548.8,0.5]
[1744356494116,80.77451267,1548.9,1548.8,1e-05]
[1744356494359,91.77417118,1548.9,1548.8,1e-05]
[1744356494564,92.70531879,1548.9,1548.8,1e-05]
[1744356495423,96.55866936,1548.9,1548.8,1e-05]
[1744356496446,6.45981,1548.1,1547.9,0.7579]
[1744356496646,6.46057,1547.9,1547.7,0.7512]
[1744356497825,6.46078,1547.8,1547.7,0.7512]
[1744356498162,7.377857,1547.9,1547.5,0.90593448]
[1744356498367,13.31496057,1547.6,1547.5,0.08323448]
[1744356498670,19.73296057,1547.6,1547.5,0.08323448]
[1744356498959,22.97852163,1547.6,1547.5,0.08323448]
[1744356499161,19.12517106,1547.6,1547.5,0.08323448]
[1744356499523,9.46203,1547.5,1547.4,6.27610594]
[1744356500227,6.09,1547.6,1547.5,0.8173]
[1744356500435,12.509,1547.6,1547.5,0.8173]
[1744356501552,13.209,1547.6,1547.5,0.8173]
[1744356502992,13.21,1547.6,1547.5,0.8173]
[1744356504090,6.79,1547.6,1547.5,0.8173]
[1744356504300,19.67161,1547.6,1547.5,0.8173]
[1744356505090,27.44041581,1547.6,1547.3,0.7897]
[1744356505255,6.46209,1547.5,1547.3,0.7897]
[1744356505451,14.88852581,1547.6,1547.3,0.7897]
[1744356505792,13.58161,1547.6,1547.3,7.25255]
[1744356506951,7.12,1547.6,1547.4,0.7535]
[1744356507153,7.12,1547.6,1547.4,7.67639506]
[1744356507354,7.12,1547.6,1547.4,1.21418506]
[1744356507590,7.12,1547.6,1547.5,0.23166291]
[1744356507776,13.58167,1547.6,1547.5,0.23166291]
[1744356507962,20.04353,1547.6,1547.4,0.7535]
[1744356508285,6.46203,1547.5,1547.4,0.7535]
[1744356508889,13.58167,1547.6,1547.4,0.7535]
[1744356509888,13.58167,1547.6,1547.5,0.23166291]
[1744356512499,15.585965,1547.6,1547.5,0.23166291]
[1744356512788,6.46271,1547.4,1547.2,0.8143]
[1744356513377,6.46271,1547.4,1547.3,0.23352679]
[1744356513881,6.46271,1547.4,1547.2,0.8143]
[1744356514190,6.46212,1547.5,1547.3,0.23542528]
[1744356514397,22.047805,1547.6,1547.3,0.23542528]
[1744356514574,22.047805,1547.6,1547.2,7.27731]
[1744356514776,6.46204,1547.5,1547.4,0.23491592]
[1744356514975,14.87017708,1547.5,1547.3,0.23538079]
[1744356515199,6.46245,1547.4,1547.2,0.8143]
[1744356515492,12.92508,1547.4,1547.2,0.8143]
[1744356515702,6.46328,1547.2,1546.9,0.8124]
[1744356515993,6.421,1547.1,1546.9,7.27681]
[1744356516200,6.421,1547.1,1546.9,0.8124]
[1744356517476,6.421,1547.1,1546.9,13.74133]
[1744356517672,6.421,1547.1,1547.0,6.46412]
[1744356517899,6.422,1547.1,1547.0,6.46412]
[1744356518099,6.46296,1547.3,1547.0,13.76144]
[1744356518299,6.422,1547.2,1547.0,7.29732]
[1744356518473,6.46254,1547.4,1547.0,13.76126]
[1744356518672,6.422,1547.1,1547.0,7.29714]
[1744356518905,6.46299,1547.3,1547.0,7.29714]
[1744356519104,6.422,1547.2,1547.0,7.29714]
[1744356519473,12.92622,1547.3,1547.0,0.8332]
[1744356519668,12.88542,1547.2,1547.0,0.8332]
[1744356519906,6.4637,1547.1,1546.9,0.8332]
[1744356520204,14.173962,1547.2,1546.9,0.8332]
[1744356520372,20.637562,1547.2,1546.9,0.8332]
[1744356520772,14.173962,1547.2,1546.9,0.8332]
[1744356520973,20.637502,1547.2,1546.9,0.8332]
[1744356521369,0.8363707,1547.1,1546.9,0.8332]
[1744356522173,7.3001407,1547.1,1546.9,0.8332]
[1744356523310,0.8363707,1547.1,1546.9,0.8332]
[1744356523606,0.8363707,1547.1,1546.9,7.29757]
[1744356524010,0.8363707,1547.1,1546.9,0.8332]
[1744356524204,0.8363707,1547.1,1546.9,7.2977]
[1744356525007,0.8363707,1547.1,1546.9,0.8332]
[1744356525210,12.88537,1547.2,1546.9,7.29765]
[1744356525717,19.34884,1547.2,1547.0,0.2143595]
[1744356526305,6.4637,1547.1,1547.0,0.2143595]
[1744356526621,19.34898,1547.2,1547.0,0.2143595]
[1744356527021,22.36694935,1547.2,1547.0,0.2143595]
[1744356527824,22.36679935,1547.2,1547.0,0.2143595]
[1744356528120,12.88537,1547.2,1547.0,0.2143595]
[1744356529737,6.422,1547.2,1547.0,0.2143595]
[1744356530795,61.89491,1547.3,1547.0,6.6783195]
[1744356531142,6.421,1547.1,1547.0,6.6783195]
[1744356531419,6.421,1547.1,1547.0,0.2143595]
[1744356533628,12.8847,1547.1,1547.0,0.2143595]
[1744356534228,14.61317685,1547.1,1547.0,0.2143595]
[1744356536932,6.421,1547.1,1547.0,0.2143595]
[1744356537114,6.421,1547.1,1547.0,6.6784795]
[1744356538137,6.421,1547.1,1547.0,0.2143595]
[1744356540268,6.421,1547.1,1547.0,6.6784795]
[1744356542727,61.89497,1547.3,1547.0,6.6784795]
[1744356542928,6.421,1547.2,1547.0,0.2143595]
[1744356543145,6.4637,1547.1,1547.0,0.2143595]
[1744356543477,6.4637,1547.1,1546.8,7.26467]
[1744356544153,7.1637,1547.1,1546.8,7.26467]
[1744356544670,7.1637,1547.1,1546.7,6.46525]
[1744356544671,13.62767,1547.1,1546.7,6.46525]
[1744356544966,7.826907,1547.0,1546.8,0.21508415]
[1744356546372,7.82284,1546.9,1546.8,0.21508415]
[1744356546672,14.68039057,1546.9,1546.8,0.21508415]
[1744356546877,10.82829,1546.6,1546.5,0.01]
[1744356547027,10.27996,1546.2,1546.1,6.37610594]
[1744356547228,78.23296,1546.2,1546.1,6.37610594]
[1744356547461,78.23396,1546.2,1546.1,6.37610594]
[1744356547860,78.78396,1546.2,1546.1,6.37610594]
[1744356549165,72.36196,1546.2,1546.1,6.37610594]
[1744356549375,78.26440548,1546.2,1546.1,6.37610594]
[1744356549557,84.68640548,1546.2,1546.1,6.37610594]
[1744356550467,89.08975605,1546.2,1546.1,6.37610594]
[1744356550668,84.68640548,1546.2,1546.1,6.37610594]
[1744356551836,78.21894548,1546.2,1546.1,6.37610594]
[1744356552376,78.59640548,1546.2,1546.1,0.1]
[1744356553174,79.14640548,1546.2,1546.1,0.1]
[1744356556377,79.14640548,1546.2,1546.1,0.30532865]
[1744356556739,78.59640548,1546.2,1546.1,0.30532865]
[1744356556939,61.864,1546.2,1546.1,0.30532865]
[1744356557868,68.33146,1546.2,1546.1,0.30532865]
[1744356558255,61.864,1546.2,1546.1,0.30532865]
[1744356560247,68.33146,1546.2,1546.1,0.30532865]
[1744356561749,68.33146,1546.2,1546.1,0.1]
[1744356562476,61.864,1546.2,1546.1,0.3039928]
[1744356562955,55.442,1546.2,1546.1,0.3039928]
[1744356563152,61.865,1546.2,1546.1,0.3039928]
[1744356563983,61.865,1546.2,1546.1,6.7718728]
[1744356564162,61.865,1546.2,1546.1,8.9528646]
[1744356564953,61.865,1546.2,1546.1,7.5937728]
[1744356565162,6.423,1546.2,1546.1,7.5937728]
[1744356565587,6.09,1546.5,1546.4,6.46663]
[1744356565760,12.512,1546.5,1546.4,6.66809918]
[1744356566183,6.09,1546.5,1546.4,6.66809918]
[1744356566385,12.512,1546.5,1546.4,1.01226918]
[1744356566687,6.09,1546.5,1546.4,1.01226918]
[1744356566887,12.512,1546.5,1546.4,1.01226918]
[1744356567995,6.09,1546.5,1546.4,1.01226918]
[1744356568196,12.512,1546.5,1546.4,1.01226918]
[1744356568860,6.422,1546.5,1546.4,1.01226918]
[1744356569061,7.26743,1546.8,1546.4,8.2265131]
[1744356569269,7.26743,1546.8,1546.4,7.47859918]
[1744356569270,6.422,1546.5,1546.4,7.47859918]
[1744356569567,6.422,1546.5,1546.4,1.01226918]
[1744356572000,6.422,1546.5,1546.4,0.20146918]
[1744356572461,6.422,1546.5,1546.3,7.27321]
[1744356572658,6.422,1546.5,1546.4,0.20271539]
[1744356573395,6.422,1546.5,1546.3,7.27321]
[1744356573583,6.422,1546.5,1546.4,6.46663]
[1744356573784,6.422,1546.5,1546.4,0.20142564]
[1744356573953,0.8181,1546.4,1546.1,0.8746]
[1744356574155,13.53046,1546.5,1546.1,13.81004]
[1744356574391,6.46671,1546.4,1546.2,0.2023562]
[1744356575596,7.0642,1546.5,1546.2,6.6697362]
[1744356575895,7.0642,1546.5,1546.1,0.8746]
[1744356575896,13.37402,1546.6,1546.3,12.93376]
[1744356576134,6.422,1546.4,1546.3,7.26465]
[1744356581793,6.422,1546.4,1546.3,0.7976]
[1744356582022,6.422,1546.4,1546.3,7.26465]
[1744356585742,6.422,1546.4,1546.3,6.66876287]
[1744356585913,7.122,1546.4,1546.3,6.66876287]
[1744356589041,7.122,1546.4,1546.3,8.06497916]
[1744356589205,7.122,1546.4,1546.3,8.89287916]
[1744356589510,0.7,1546.4,1546.3,11.89287916]
[1744356590345,0.7,1546.4,1546.3,8.89287916]
[1744356591736,0.7,1546.4,1546.3,9.38123478]
[1744356592335,0.7,1546.4,1546.3,12.38123478]
[1744356592638,6.42,1546.6,1546.5,7.27601]
[1744356592815,6.42,1546.6,1546.5,12.18897945]
[1744356593017,6.42,1546.6,1546.5,12.38801089]
[1744356594445,6.42,1546.6,1546.5,7.47504144]
[1744356597550,6.42,1546.6,1546.5,11.32839201]
[1744356597754,6.92,1546.6,1546.5,11.32839201]
[1744356599356,6.92,1546.6,1546.5,0.19903144]
[1744356599527,14.15229,1546.6,1546.5,0.19903144]
[1744356599713,9.101729,1546.6,1546.3,10.80874619]
[1744356599909,7.6865,1546.6,1546.4,0.20046377]
[1744356600538,14.15239,1546.6,1546.4,0.20046377]
[1744356601713,6.46621,1546.5,1546.4,0.20046377]
[1744356602116,20.61846,1546.6,1546.4,0.20046377]
[1744356602374,14.15239,1546.6,1546.4,0.20046377]
[1744356604458,6.92,1546.6,1546.4,6.66696377]
[1744356604759,6.92,1546.6,1546.4,9.1400392]
[1744356605164,6.42,1546.6,1546.5,10.31956057]
[1744356605318,6.09,1546.9,1546.7,6.46515]
[1744356605528,12.509,1546.9,1546.7,6.46515]
[1744356606016,12.509,1546.9,1546.7,12.93034]
[1744356606232,12.509,1546.9,1546.7,6.46515]
[1744356606631,12.509,1546.9,1546.7,7.24935]
[1744356606868,6.09,1546.9,1546.8,6.46495]
[1744356607399,61.89,1547.0,1546.8,6.46495]
[1744356608144,61.89,1547.0,1546.8,6.4648]
[1744356608464,61.89,1547.0,1546.8,12.92962]
[1744356608670,7.22665,1547.2,1546.9,6.46454]
[1744356608867,11.75534072,1547.5,1547.2,6.46314]
[1744356608868,11.96896072,1547.5,1547.2,6.46314]
[1744356609030,5.50660072,1547.5,1547.2,6.46314]
[1744356609231,4.74330072,1547.5,1547.4,6.46245]
[1744356609456,4.74330072,1547.5,1547.4,11.42925063]
[1744356609962,4.74330072,1547.5,1547.4,11.92579485]
[1744356611326,4.74330072,1547.5,1547.4,12.68639485]
[1744356611532,4.74330072,1547.5,1547.4,15.68639485]
[1744356612273,6.16629094,1547.9,1547.8,7.24798]
[1744356612447,6.16629094,1547.9,1547.8,14.10133057]
[1744356613331,4.77772093,1548.1,1547.9,6.46018]
[1744356613697,7.22444,1548.0,1547.7,9.46112]
[1744356613899,0.7645,1548.0,1547.7,12.92215]
[1744356614095,0.7645,1548.0,1547.7,6.46103]
[1744356615203,0.7645,1548.0,1547.6,11.07130057]
[1744356615502,6.46134,1547.7,1547.3,6.46285]
[1744356615664,6.46134,1547.7,1547.3,12.92532]
[1744356615665,12.87534,1547.7,1547.3,12.92532]
[1744356616161,12.87534,1547.7,1547.4,6.46241]
[1744356616360,12.87534,1547.7,1547.4,10.31576057]
[1744356616974,12.87534,1547.7,1547.4,6.46241]
[1744356617421,6.414,1547.7,1547.5,7.2836]
[1744356617595,0.7907,1547.8,1547.6,6.46159]
[1744356617806,0.8089,1547.9,1547.7,0.1926829]
[1744356618102,0.8089,1547.9,1547.7,6.46106]
[1744356618402,7.2229,1547.9,1547.8,0.19292933]
[1744356618799,5.56742093,1548.1,1547.8,6.65346933]
[1744356618966,0.7897,1548.1,1547.8,6.65346933]
[1744356619165,0.7897,1548.1,1547.8,13.11410933]
[1744356619364,6.414,1548.0,1547.8,13.11410933]
[1744356620000,6.414,1548.0,1547.8,0.19292933]
[1744356620201,0.6414,1547.9,1547.6,13.71635]
[1744356620399,12.87419,1548.0,1547.7,0.18965056]
[1744356620568,12.87419,1548.0,1547.6,13.71635]
[1744356620770,6.413,1547.9,1547.7,0.18973941]
[1744356620970,6.413,1547.9,1547.6,13.71635]
[1744356621180,6.413,1547.9,1547.7,6.65048517]
[1744356621904,6.413,1547.9,1547.8,6.46078]
[1744356622275,6.413,1548.2,1547.9,13.69786]
[1744356622478,6.413,1548.2,1547.9,7.2377]
[1744356622784,6.413,1548.2,1548.0,0.18603737]
[1744356623211,12.87219,1548.2,1548.0,0.18603737]
[1744356623505,14.884499,1548.2,1548.0,0.18603737]
[1744356624302,6.45953,1548.1,1548.0,0.18603737]
[1744356624606,12.87253,1548.1,1547.7,14.83841945]
[1744356624769,12.87253,1548.1,1547.8,6.64843599]
[1744356628016,19.33231,1548.1,1547.8,0.18767599]
[1744356628313,15.0069919,1548.1,1547.8,0.18767599]
[1744356628616,21.4667719,1548.1,1547.8,0.18767599]
[1744356628817,22.2245719,1548.1,1547.8,0.18767599]
[1744356629116,15.7637919,1548.1,1547.8,0.18767599]
[1744356629611,6.46,1548.0,1547.8,0.18767599]
[1744356629825,6.46036,1547.9,1547.8,0.18767599]
[1744356630015,6.46036,1547.9,1547.6,7.21405]
[1744356630334,7.22598,1547.8,1547.7,0.18947325]
[1744356630683,13.68712,1547.8,1547.4,7.22572]
[1744356630986,6.412,1547.7,1547.4,7.22567]
[1744356631192,6.412,1547.7,1547.5,6.46202]
[1744356632448,6.412,1547.7,1547.4,14.79586206]
[1744356633222,6.412,1547.7,1547.5,6.4619]
[1744356633387,0.7652,1547.8,1547.5,6.46189]
[1744356633586,0.7652,1547.8,1547.5,16.77711057]
[1744356634105,0.7652,1547.8,1547.5,10.31522057]
[1744356634303,8.594618,1547.8,1547.4,7.22578]
[1744356634479,8.594618,1547.8,1547.4,13.68809]
[1744356635014,15.055598,1547.8,1547.4,13.68809]
[1744356635418,7.226,1547.8,1547.5,6.46199]
[1744356636223,7.226,1547.8,1547.5,6.4619]
[1744356636831,7.226,1547.8,1547.4,7.70877538]
[1744356637127,7.226,1547.8,1547.4,14.17106538]
[1744356637490,0.7652,1547.8,1547.4,7.70871538]
[1744356637829,6.46148,1547.7,1547.5,0.19126363]
[1744356638705,12.87448,1547.7,1547.5,0.19126363]
[1744356639006,6.46161,1547.6,1547.5,0.19126363]
[1744356639218,6.46161,1547.6,1547.2,6.46319]
[1744356639219,6.46211,1547.5,1547.2,6.46319]
[1744356639419,6.46211,1547.5,1547.3,0.19219272]
[1744356640127,7.25431,1547.6,1547.3,6.65493272]
[1744356640326,0.7927,1547.6,1547.3,16.97103329]
[1744356640527,7.1895,1547.7,1547.4,12.9248]
[1744356640827,6.413,1547.7,1547.5,6.65312363]
[1744356641027,6.413,1547.7,1547.5,11.3010742]
[1744356642027,6.413,1547.7,1547.5,6.65312363]
[1744356642194,6.413,1547.7,1547.5,0.19126363]
[1744356643030,12.8742,1547.7,1547.5,0.19126363]
[1744356643190,21.32546176,1547.7,1547.5,0.19126363]
[1744356643395,21.32546176,1547.7,1547.3,16.77903057]
[1744356643396,6.46161,1547.6,1547.3,10.31619057]
[1744356643590,6.46161,1547.6,1547.4,0.19169339]
[1744356643831,6.46161,1547.6,1547.3,10.31619057]
[1744356644033,6.46161,1547.6,1547.4,0.19169339]
[1744356644337,6.46161,1547.6,1547.3,10.31619057]
[1744356644507,7.22091,1547.6,1547.5,0.19122888]
[1744356644709,9.42940518,1547.6,1547.4,0.19169339]
[1744356644908,9.42940518,1547.6,1547.5,0.19122888]
[1744356645306,9.42940518,1547.6,1547.3,10.31620057]
[1744356645523,7.22091,1547.6,1547.5,0.19122888]
[1744356645692,6.413,1547.7,1547.5,6.46203]
[1744356645897,6.411,1547.7,1547.5,7.47110117]
[1744356646197,6.411,1547.7,1547.6,6.46161]
[1744356646535,6.411,1547.7,1547.6,8.42800466]
[1744356646842,0.772,1547.9,1547.6,8.42800466]
[1744356646998,20.10047,1548.0,1547.7,6.46117]
[1744356647194,20.10047,1548.0,1547.7,0.18750188]
[1744356647195,6.46078,1547.8,1547.7,0.18750188]
[1744356647517,6.46173,1547.6,1547.3,6.46274]
[1744356647709,13.66763,1547.6,1547.3,6.46274]
[1744356647912,13.66763,1547.6,1547.4,0.18960532]
[1744356648302,13.66763,1547.6,1547.3,6.46274]
[1744356648519,13.66763,1547.6,1547.5,0.18914094]
[1744356648719,13.66763,1547.6,1547.4,0.18960532]
[1744356648913,13.66763,1547.6,1547.5,0.18914094]
[1744356649321,13.66763,1547.6,1547.3,6.46274]
[1744356649528,13.66763,1547.6,1547.5,0.18914094]
[1744356649839,6.46203,1547.5,1547.2,9.46328]
[1744356650335,13.66763,1547.6,1547.3,6.4628]
[1744356650632,13.66763,1547.6,1547.3,12.9256]
[1744356650824,13.66763,1547.6,1547.3,6.4628]
[1744356651024,13.66763,1547.6,1547.3,6.46286]
[1744356651227,13.66763,1547.6,1547.3,12.92557]
[1744356651431,13.66763,1547.6,1547.3,6.46271]
[1744356652208,20.12946,1547.6,1547.3,6.46271]
[1744356652409,20.12946,1547.6,1547.2,16.72613]
[1744356652730,20.12963,1547.6,1547.2,16.72611]
[1744356652931,20.12963,1547.6,1547.3,0.19078069]
[1744356653241,6.46245,1547.4,1547.3,0.19078069]
[1744356653557,6.46245,1547.4,1547.1,10.31703057]
[1744356653708,6.46245,1547.4,1547.3,0.19078069]
[1744356653908,6.46245,1547.4,1547.2,0.19124524]
[1744356654121,6.46245,1547.4,1547.3,0.19078069]
[1744356654508,6.46245,1547.4,1547.1,16.78061057]
[1744356654721,6.46245,1547.4,1547.3,0.19078069]
[1744356654934,6.46245,1547.4,1547.2,0.19124524]
[1744356655122,6.46245,1547.4,1547.3,0.19078069]
[1744356655409,6.46245,1547.4,1547.1,18.54170163]
[1744356655638,6.46245,1547.4,1547.3,0.19078069]
[1744356655810,7.2059,1547.6,1547.3,6.46253]
[1744356656012,0.7949,1547.6,1547.3,7.34769873]
[1744356656211,7.2069,1547.6,1547.3,7.34769873]
[1744356656536,20.13043,1547.6,1547.3,7.34769873]
[1744356656850,20.13043,1547.6,1547.3,0.19042534]
[1744356658348,6.46215,1547.5,1547.3,0.19042534]
[1744356658536,12.92439,1547.5,1547.3,0.19042534]
[1744356658737,6.46215,1547.5,1547.3,0.19042534]
[1744356659141,12.92437,1547.5,1547.3,0.19042534]
[1744356659644,6.46215,1547.5,1547.3,0.19042534]
[1744356660562,7.2069,1547.6,1547.3,8.11906087]
[1744356660746,6.412,1547.6,1547.4,6.46231]
[1744356661143,6.412,1547.6,1547.5,0.18992215]
[1744356663558,6.412,1547.6,1547.5,6.65195215]
[1744356663761,7.22711,1547.9,1547.5,7.44707215]
[1744356664146,7.22711,1547.9,1547.6,6.46148]
[1744356664466,7.22711,1547.9,1547.7,0.1894376]
[1744356664639,7.22711,1547.9,1547.6,12.92297]
[1744356664837,7.22711,1547.9,1547.8,0.18906218]
[1744356665027,7.22711,1547.9,1547.6,6.46148]
[1744356665357,7.22711,1547.9,1547.8,0.18906218]
[1744356665527,9.237025,1547.9,1547.7,0.18961522]
[1744356665727,9.237025,1547.9,1547.8,0.18915099]
[1744356666158,15.697605,1547.9,1547.6,6.46148]
[1744356666366,13.68769,1547.9,1547.8,0.18915099]
[1744356666860,13.68769,1547.9,1547.5,13.71918]
[1744356667059,13.68769,1547.9,1547.6,0.18990188]
[1744356667627,13.6877,1547.9,1547.6,0.18990188]
[1744356667826,7.22711,1547.9,1547.6,6.65149188]
[1744356668657,7.22721,1547.9,1547.6,1.62932127]
[1744356668861,7.22721,1547.9,1547.6,0.18990188]
[1744356669066,7.2942,1547.7,1547.6,0.18990188]
[1744356669226,6.46172,1547.6,1547.2,22.33618225]
[1744356669428,12.87272,1547.6,1547.3,0.19147277]
[1744356669628,6.46211,1547.5,1547.3,0.19147277]
[1744356669843,12.87272,1547.6,1547.3,0.19147277]
[1744356670359,12.87272,1547.6,1547.3,6.65421277]
[1744356670563,19.7933,1547.9,1547.4,4.63955057]
[1744356670866,20.164,1547.9,1547.5,7.11610129]
[1744356671046,7.2923,1547.9,1547.5,7.11610129]
[1744356671253,7.2923,1547.9,1547.6,6.46149]
[1744356671458,7.2923,1547.9,1547.7,0.18934879]
[1744356671630,0.8317,1547.9,1547.6,12.92298]
[1744356671829,7.29276,1548.0,1547.7,6.65121971]
[1744356672470,7.29276,1548.0,1547.7,0.19005971]
[1744356672471,13.753,1548.0,1547.7,0.19005971]
[1744356672765,13.753,1548.0,1547.6,8.59348351]
[1744356672965,13.753,1548.0,1547.8,0.18995068]
[1744356673128,16.0373,1548.0,1547.7,0.19041496]
[1744356673328,19.0373,1548.0,1547.9,0.18930884]
[1744356673555,19.0373,1548.0,1547.8,0.18986187]
[1744356673765,19.0373,1548.0,1547.6,13.71624]